bitfinex/quotes_ETHUSD_20250520
["timestamp","ask_amount","ask_price","bid_price","bid_amount"]
[1747771913911,0.1,2506.9,2506.8,20.67977551]
[1747771914115,0.1,2506.9,2506.8,21.32616786]
[1747771914274,3.98654971,2508.5,2507.0,0.8153]
[1747771914275,4.76009272,2508.5,2507.0,0.8153]
[1747771914476,3.98790116,2507.6,2507.2,0.55]
[1747771914677,3.98731309,2508.0,2507.2,0.55]
[1747771914913,3.98688087,2508.3,2507.2,0.55]
[1747771915217,0.7736,2508.5,2507.3,8.0]
[1747771915417,4.76007414,2508.5,2507.6,0.55]
[1747771915622,3.98755881,2507.8,2507.7,21.775]
[1747771916602,3.9881741,2507.5,2507.3,8.55]
[1747771916804,3.98803589,2507.5,2507.4,21.775]
[1747771917020,4.38683948,2507.5,2507.4,21.775]
[1747771917881,0.1,2507.9,2507.5,1.3107]
[1747771918104,3.98519931,2509.3,2507.5,1.3107]
[1747771918105,0.8141,2509.4,2507.9,1.3107]
[1747771918304,3.9868857,2508.3,2507.9,0.7607]
[1747771918509,3.9872265,2508.1,2508.0,21.769]
[1747771918715,3.9872265,2508.1,2508.0,38.995]
[1747771919016,3.9870381,2508.2,2508.0,44.36521]
[1747771919317,3.98628717,2508.6,2508.0,38.995]
[1747771919534,3.98708185,2508.1,2508.0,38.995]
[1747771919730,3.98708185,2508.1,2508.0,45.260208]
[1747771920283,3.98708185,2508.1,2508.0,41.560308]
[1747771920701,3.98708185,2508.1,2508.0,42.110308]
[1747771921918,0.87863566,2508.6,2508.1,0.55]
[1747771922226,3.98692289,2508.2,2508.1,0.55]
[1747771922431,3.98676056,2508.4,2508.1,4.822042]
[1747771922594,3.98615194,2508.7,2508.1,0.55]
[1747771922794,3.98692289,2508.2,2508.1,0.55]
[1747771923000,3.98692289,2508.2,2508.1,3.473492]
[1747771923200,3.98692289,2508.2,2508.0,38.995]
[1747771923201,3.98708185,2508.1,2508.0,17.226]
[1747771923725,4.78448232,2508.1,2508.0,38.987]
[1747771923896,4.78448232,2508.1,2508.0,17.226]
[1747771924101,4.78448232,2508.1,2508.0,30.018]
[1747771924302,4.78448232,2508.1,2508.0,17.226]
[1747771924507,4.78448232,2508.1,2508.0,30.018]
[1747771924825,4.78448232,2508.1,2508.0,17.226]
[1747771924989,4.78448232,2508.1,2508.0,30.018]
[1747771925592,4.78448232,2508.1,2507.2,0.7633]
[1747771925593,3.988354,2507.3,2507.2,0.7633]
[1747771925922,3.988354,2507.3,2507.2,38.976]
[1747771927330,3.988354,2507.3,2507.2,30.41447861]
[1747771927525,3.988354,2507.3,2507.2,30.009]
[1747771928435,3.988354,2507.3,2507.2,29.984]
[1747771928597,4.86665161,2507.3,2507.2,29.984]
[1747771929627,3.988354,2507.3,2507.2,29.984]
[1747771932532,4.789454,2507.3,2507.2,29.984]
[1747771933259,3.988354,2507.3,2507.2,29.984]
[1747771934826,3.988354,2507.3,2507.2,37.309326]
[1747771935029,3.988354,2507.3,2507.2,36.259356]
[1747771935447,0.8011,2507.9,2507.3,8.0]
[1747771935633,3.9878306,2507.7,2507.3,8.0]
[1747771935834,3.9878306,2507.7,2507.4,0.55]
[1747771935835,3.98790709,2507.6,2507.4,0.55]
[1747771936058,3.98739981,2507.9,2507.3,8.0]
[1747771936402,3.98819494,2507.4,2507.2,29.984]
[1747771936544,3.988354,2507.3,2507.2,37.984]
[1747771936868,3.988354,2507.3,2507.2,29.984]
[1747771937568,3.988354,2507.3,2507.2,39.32051555]
[1747771938766,3.988354,2507.3,2507.2,38.951]
[1747771941142,3.988354,2507.3,2507.2,39.32266017]
[1747771943040,4.78600889,2507.3,2507.2,39.32266017]
[1747771943749,4.78600889,2507.3,2507.2,30.35566017]
[1747771943979,3.98867217,2507.1,2507.0,0.46828402]
[1747771944274,4.81217217,2507.1,2507.0,0.46828402]
[1747771944480,4.81217217,2507.1,2506.8,12.767]
[1747771944481,3.98899038,2506.9,2506.8,12.767]
[1747771944839,4.81249038,2506.9,2506.8,12.767]
[1747771948251,3.98978614,2506.4,2506.3,26.183]
[1747771948475,3.98978614,2506.4,2506.3,38.952]
[1747771948843,3.98971134,2506.5,2506.3,38.952]
[1747771949063,3.98978614,2506.4,2506.3,38.952]
[1747771950255,3.98962696,2506.5,2506.4,0.7747]
[1747771951090,3.98978614,2506.4,2506.3,17.216]
[1747771951271,3.98978614,2506.4,2506.3,29.985]
[1747771951783,3.98970361,2506.5,2506.3,29.985]
[1747771951986,3.98978614,2506.4,2506.3,29.985]
[1747771956401,3.98978614,2506.4,2506.3,30.3576775]
[1747771957117,3.98902447,2506.9,2506.5,0.55]
[1747771957262,3.98902447,2506.9,2506.6,12.3159]
[1747771957462,3.98914951,2506.8,2506.7,4.9053]
[1747771957666,3.98914951,2506.8,2506.7,19.11773]
[1747771957994,3.98914951,2506.8,2506.7,14.21243]
[1747771958167,3.98914951,2506.8,2506.7,12.77]
[1747771959794,3.98914951,2506.8,2506.7,13.1426775]
[1747771960366,3.98880388,2507.1,2506.8,8.7807]
[1747771960566,3.98899038,2506.9,2506.8,8.7807]
[1747771960777,3.98899038,2506.9,2506.8,15.831905]
[1747771960988,3.98899038,2506.9,2506.8,12.031905]
[1747771961806,3.98899038,2506.9,2506.8,11.62186152]
[1747771962309,3.98872827,2507.1,2506.8,11.62186152]
[1747771962515,3.98899038,2506.9,2506.8,9.62166152]
[1747771962708,3.98899038,2506.9,2506.8,12.71036652]
[1747771963405,3.98899038,2506.9,2506.8,11.1535775]
[1747771963977,3.98899038,2506.9,2506.8,9.1533775]
[1747771964609,3.98899038,2506.9,2506.8,11.7835975]
[1747771964927,0.7994,2507.6,2506.8,16.4787035]
[1747771965239,3.9886141,2507.2,2506.9,2.45535975]
[1747771965581,3.98883127,2507.0,2506.9,2.45535975]
[1747771965777,3.98883127,2507.0,2506.9,7.32677475]
[1747771966610,3.98883127,2507.0,2506.9,7.69945225]
[1747771966911,3.98876082,2507.1,2506.9,4.96614425]
[1747771967113,3.98876082,2507.1,2507.0,0.75496145]
[1747771967911,3.98863003,2507.2,2507.0,8.08028745]
[1747771968104,3.98867217,2507.1,2507.0,0.75496145]
[1747771968409,3.98858908,2507.2,2507.1,7.325326]
[1747771968615,3.98858908,2507.2,2507.1,5.508289]
[1747771968790,3.98858908,2507.2,2507.1,3.79]
[1747771969200,3.98867217,2507.1,2507.0,1.12763895]
[1747771969400,3.98645768,2508.5,2507.1,8.137926]
[1747771969590,3.98825761,2507.4,2507.2,21.68354499]
[1747771969789,3.98825761,2507.4,2507.3,34.185]
[1747771970211,3.98797718,2507.6,2507.3,34.185]
[1747771970212,3.98809545,2507.5,2507.3,34.185]
[1747771970423,3.98809545,2507.5,2507.3,34.5576775]
[1747771970624,3.98788052,2507.6,2507.3,34.5576775]
[1747771970815,3.98788052,2507.6,2507.4,1.52481476]
[1747771970816,3.98796284,2507.6,2507.4,1.52481476]
[1747771972020,3.98796284,2507.6,2507.4,1.92895376]
[1747771972422,3.98803589,2507.5,2507.4,1.92895376]
[1747771974195,3.98803589,2507.5,2507.4,0.404139]
[1747771974437,4.80939494,2507.4,2507.3,17.218]
[1747771974742,4.80939494,2507.4,2507.3,29.97]
[1747771975352,4.81003127,2507.0,2506.9,0.46828402]
[1747771975536,4.81003127,2507.0,2506.9,13.21928402]
[1747771975730,5.6899047,2507.0,2506.9,13.21928402]
[1747771976045,5.6899047,2507.0,2506.9,12.751]
[1747771976947,3.98930865,2506.7,2506.6,17.215]
[1747771977148,4.81050865,2506.7,2506.6,29.966]
[1747771980276,5.69047741,2506.7,2506.6,29.966]
[1747771981044,4.81050865,2506.7,2506.6,29.966]
[1747771984850,3.99010454,2506.2,2506.1,0.1]
[1747771985058,3.99010454,2506.2,2506.1,12.854]
[1747771985282,4.80690454,2506.2,2506.1,12.854]
[1747771985570,3.99010454,2506.2,2506.1,12.854]
[1747771986165,4.78811283,2506.2,2506.1,12.854]
[1747771987965,5.60491283,2506.2,2506.1,12.856]
[1747771988756,5.60491283,2506.2,2506.1,0.1]
[1747771989129,9.81991283,2506.2,2506.1,0.1]
[1747771989312,4.13199726,2505.2,2505.1,0.1]
[1747771989515,4.94435383,2505.2,2505.1,0.1]
[1747771990952,9.15935383,2505.2,2505.1,0.1]
[1747771991315,9.56166276,2505.2,2505.1,0.1]
[1747771991652,5.34666276,2505.2,2505.1,0.1]
[1747771991873,3.99329127,2504.2,2504.1,9.071]
[1747771992030,3.99329127,2504.2,2504.1,28.5509]
[1747771992235,3.99329127,2504.2,2504.1,21.804]
[1747771993275,3.99329127,2504.2,2504.1,12.833]
[1747771993425,3.99329127,2504.2,2504.1,21.804]
[1747771993782,3.99329127,2504.2,2504.1,21.809]
[1747771996079,3.99329127,2504.2,2504.1,29.134326]
[1747771996582,3.99329127,2504.2,2504.1,24.561197]
[1747771998093,3.99329127,2504.2,2504.1,21.809]
[1747771998290,3.99329127,2504.2,2504.1,24.661197]
[1747771998503,3.99320603,2504.3,2504.1,25.484597]
[1747771998683,3.99320603,2504.3,2504.2,5.04998]
[1747771999293,3.99329127,2504.2,2504.1,22.6324]
[1747771999591,3.99329127,2504.2,2504.1,21.811]
[1747771999753,4.791941,2504.2,2504.1,12.836]
[1747772001089,3.99329127,2504.2,2504.1,12.836]
[1747772003383,3.99289392,2504.5,2504.2,0.8234]
[1747772003771,3.99311766,2504.4,2504.2,0.8234]
[1747772003972,3.99322632,2504.3,2504.1,8.1]
[1747772004172,3.99322632,2504.3,2504.2,21.716]
[1747772004400,3.99329127,2504.2,2504.1,0.1]
[1747772004567,3.99329127,2504.2,2504.1,21.816]
[1747772005369,3.99201596,2505.0,2504.1,29.141326]
[1747772005577,3.9928955,2504.5,2504.1,21.816]
[1747772005903,3.99329127,2504.2,2504.1,21.816]
[1747772006102,3.99329127,2504.2,2504.1,33.6037]
[1747772006310,3.99322649,2504.3,2504.1,33.6037]
[1747772006496,3.99322649,2504.3,2504.1,29.816]
[1747772006695,3.99329127,2504.2,2504.1,29.816]
[1747772006900,3.99329127,2504.2,2504.1,33.604103]
[1747772007615,3.99329127,2504.2,2504.1,0.1]
[1747772007811,3.99329127,2504.2,2504.1,21.816]
[1747772009913,3.99329127,2504.2,2504.1,12.84]
[1747772010078,3.99329127,2504.2,2504.1,21.816]
[1747772010279,3.99329127,2504.2,2504.1,12.84]
[1747772011211,4.54278202,2504.2,2504.1,12.84]
[1747772012309,5.32738202,2504.2,2504.1,12.84]
[1747772013115,4.77821022,2504.0,2503.9,17.222]
[1747772013319,4.77821022,2504.0,2503.8,12.741]
[1747772013320,3.99376971,2503.9,2503.8,12.741]
[1747772013625,4.77821022,2504.0,2503.2,12.741]
[1747772013626,3.99472696,2503.3,2503.2,12.741]
[1747772013818,5.27155718,2503.3,2503.2,12.741]
[1747772014530,3.99488654,2503.2,2503.1,17.80328402]
[1747772015017,3.99488654,2503.2,2503.1,17.335]
[1747772018623,3.99488654,2503.2,2503.1,39.029]
[1747772021596,3.99488654,2503.2,2503.1,30.051]
[1747772021902,6.00470463,2503.2,2503.1,30.051]
[1747772024636,6.00470463,2503.2,2502.7,12.717]
[1747772024808,3.99600399,2502.5,2502.4,0.08670346]
[1747772027597,3.99600399,2502.5,2502.4,12.80570346]
[1747772027961,5.61519169,2502.5,2502.4,12.80570346]
[1747772029023,9.83019169,2502.5,2502.4,0.08670346]
[1747772030658,18.77242839,2502.5,2502.4,0.08670346]
[1747772030796,3.99787557,2501.4,2501.2,0.46828402]
[1747772030997,4.215,2502.3,2501.2,0.46828402]
[1747772030998,3.99728184,2501.7,2501.6,8.983]
[1747772031624,3.99728184,2501.7,2501.6,9.7861]
[1747772031895,3.99728184,2501.7,2501.6,22.5091]
[1747772034743,3.99728184,2501.7,2501.6,21.707]
[1747772035302,3.99688592,2502.0,2501.6,29.835426]
[1747772035509,3.99715249,2501.8,2501.7,1.28579332]
[1747772035943,3.99728184,2501.7,2501.6,22.5101]
[1747772036621,3.9987204,2500.8,2499.9,2.03383957]
[1747772036826,4.8261204,2500.8,2500.7,0.62689477]
[1747772037144,3.9987204,2500.8,2500.7,0.62689477]
[1747772038417,3.9987204,2500.8,2500.7,13.35189477]
[1747772038811,3.99834223,2501.1,2500.7,12.725]
[1747772039007,3.99840063,2501.0,2500.7,12.725]
[1747772039325,3.99760242,2501.5,2500.7,12.725]
[1747772039724,3.9987204,2500.8,2500.7,12.725]
[1747772040249,3.99858741,2500.9,2500.5,0.8089]
[1747772040250,3.99904023,2500.6,2500.5,0.8089]
[1747772040545,3.99904023,2500.6,2500.5,30.5199]
[1747772041106,3.99833652,2501.1,2500.6,8.0]
[1747772041310,3.9989171,2500.7,2500.6,8.0]
[1747772042205,3.99760143,2501.5,2500.6,8.0]
[1747772042411,3.99809216,2501.2,2500.6,8.0]
[1747772042721,3.99809216,2501.2,2500.7,0.7551]
[1747772042722,3.99827102,2501.1,2500.7,0.7551]
[1747772043248,3.99856076,2500.9,2500.7,0.7551]
[1747772043852,3.9987204,2500.8,2500.7,0.7551]
[1747772044025,3.99856051,2500.9,2500.8,8.0]
[1747772045245,3.99835114,2501.1,2500.9,0.7692]
[1747772045448,4.80490855,2501.9,2501.0,3.59846912]
[1747772045614,3.99710459,2501.9,2501.5,0.7692]
[1747772045814,3.99678178,2502.1,2501.7,8.0]
[1747772045815,3.99672346,2502.1,2501.7,8.0]
[1747772046220,3.99667882,2502.1,2501.7,8.0]
[1747772046611,0.8078,2502.8,2501.7,11.59747338]
[1747772046933,3.99552501,2502.8,2501.9,8.7939]
[1747772047133,3.99552501,2502.8,2501.9,0.7939]
[1747772047322,3.99676226,2502.1,2501.9,0.7939]
[1747772048118,3.99680255,2502.0,2501.9,0.7939]
[1747772049149,3.99521837,2503.0,2501.9,1.67329]
[1747772049449,3.99650132,2502.2,2501.9,1.67329]
[1747772049654,3.99667027,2502.1,2501.9,1.67329]
[1747772049855,3.99680255,2502.0,2501.9,1.67329]
[1747772050014,3.99680255,2502.0,2501.9,22.36829]
[1747772050857,3.99680255,2502.0,2501.9,20.695]
[1747772051158,3.99680255,2502.0,2501.9,12.695]
[1747772053669,3.99728184,2501.7,2501.6,25.257]
[1747772053965,3.99728184,2501.7,2501.6,29.95]
[1747772057766,4.44667865,2501.7,2501.6,29.95]
[1747772060395,5.25927865,2501.7,2501.6,12.693]
[1747772061270,3.99856051,2500.9,2500.8,17.254]
[1747772061474,3.99856051,2500.9,2500.8,29.948]
[1747772065208,4.79825662,2500.9,2500.8,29.948]
[1747772067211,4.79825662,2500.9,2500.8,17.254]
[1747772068216,5.59145662,2500.9,2500.8,17.254]
[1747772068414,5.59145662,2500.9,2500.1,9.088]
[1747772068415,3.99968002,2500.2,2500.1,9.088]
[1747772068715,3.99968002,2500.2,2500.1,29.785]
[1747772069874,3.99968002,2500.2,2500.1,30.5991]
[1747772071839,3.99968002,2500.2,2500.1,29.786]
[1747772075241,3.99833459,2501.1,2500.3,0.8147]
[1747772075431,3.99808092,2501.2,2500.3,0.8147]
[1747772075614,3.99913093,2500.6,2500.3,0.8147]
[1747772075802,3.99913093,2500.6,2500.5,8.0]
[1747772076008,3.99913093,2500.6,2500.5,11.079056]
[1747772077404,3.99931739,2500.5,2500.3,0.8147]
[1747772077605,3.9993601,2500.4,2500.3,0.8147]
[1747772078555,3.9993601,2500.4,2500.3,1.18904611]
[1747772079761,3.999248,2500.5,2500.3,1.18904611]
[1747772080458,3.9993601,2500.4,2500.3,1.18904611]
[1747772080840,3.9993601,2500.4,2500.3,5.31082411]
[1747772081186,3.9992085,2500.5,2500.3,12.21082411]
[1747772081385,3.99808092,2501.2,2500.4,3.937274]
[1747772081676,3.99894289,2500.7,2500.3,9.18904611]
[1747772081868,3.99920015,2500.5,2500.4,0.91890461]
[1747772082181,3.9991685,2500.6,2500.4,3.09680761]
[1747772082372,3.9991685,2500.6,2500.5,7.325326]
[1747772082673,3.9991685,2500.6,2500.5,6.064]
[1747772083278,3.9991685,2500.6,2500.5,5.541619]
[1747772083783,3.9991685,2500.6,2500.4,1.29325072]
[1747772083953,3.99760143,2501.5,2500.6,4.90782958]
[1747772084277,3.99856051,2500.9,2500.8,8.0]
[1747772084479,3.99856051,2500.9,2500.8,36.3355]
[1747772084682,3.99856051,2500.9,2500.8,34.25]
[1747772084865,3.99856051,2500.9,2500.8,38.2175]
[1747772085184,3.99856051,2500.9,2500.8,34.25]
[1747772085496,3.99856051,2500.9,2500.8,39.28834611]
[1747772086379,3.99856051,2500.9,2500.8,39.28734611]
[1747772086892,3.99856051,2500.9,2500.8,30.29734611]
[1747772087088,4.87361689,2500.9,2500.8,17.63434611]
[1747772087293,4.87361689,2500.9,2500.8,29.923]
[1747772087469,4.87361689,2500.9,2500.8,17.26]
[1747772087668,3.99888031,2500.7,2500.6,12.663]
[1747772087904,4.75488031,2500.7,2500.6,12.663]
[1747772088106,6.11760552,2500.7,2500.6,12.663]
[1747772088470,3.99888031,2500.7,2500.6,12.663]
[1747772091070,3.99888031,2500.7,2500.6,20.663]
[1747772091604,3.99888031,2500.7,2500.6,21.03902326]
[1747772091904,3.99888031,2500.7,2500.6,13.03902326]
[1747772096280,4.77978031,2500.7,2500.6,13.03902326]
[1747772096483,6.05748989,2500.7,2500.6,13.03902326]
[1747772097323,6.05748989,2500.7,2500.6,12.663]
[1747772098098,4.80778002,2500.2,2500.1,0.1]
[1747772099122,4.80778002,2500.2,2499.1,0.1]
[1747772099123,4.0012804,2499.2,2499.1,0.1]
[1747772099411,4.0012804,2499.2,2499.1,12.765]
[1747772100196,4.88233349,2499.2,2499.1,0.1]
[1747772101276,5.68513349,2499.2,2499.1,0.1]
[1747772102812,0.8028,2499.5,2499.1,0.1]
[1747772102990,4.00112031,2499.3,2499.2,12.667]
[1747772103807,4.00112031,2499.3,2499.2,21.4815]
[1747772104305,4.00112031,2499.3,2499.2,13.4815]
[1747772104477,4.0012804,2499.2,2499.1,0.1]
[1747772104677,4.0012804,2499.2,2499.1,20.769]
[1747772105315,5.20161649,2499.2,2499.1,12.769]
[1747772105476,5.96371649,2499.2,2499.1,0.1]
[1747772106484,4.7633804,2499.2,2499.1,0.1]
[1747772109731,13.3133804,2499.2,2499.1,0.1]
[1747772111265,4.00288207,2498.2,2498.1,0.1]
[1747772111550,8.25018207,2498.2,2498.1,0.1]
[1747772111750,5.26847558,2498.2,2498.1,0.1]
[1747772112121,5.65984826,2498.2,2498.1,0.1]
[1747772112736,5.26847558,2498.2,2498.1,0.1]
[1747772113741,18.28182244,2498.2,2498.1,0.1]
[1747772114257,18.6721153,2498.2,2498.1,0.1]
[1747772114754,14.20876844,2498.2,2498.1,0.1]
[1747772114960,4.00448502,2497.2,2497.1,0.1]
[1747772115116,12.55448502,2497.2,2497.1,0.1]
[1747772116047,13.22808502,2497.2,2497.1,0.1]
[1747772117212,4.00608925,2496.2,2496.0,12.641]
[1747772118029,12.55608925,2496.2,2495.8,12.641]
[1747772118218,14.25196572,2496.2,2495.8,12.641]
[1747772118553,14.37556572,2496.2,2495.8,12.641]
[1747772118753,4.00608925,2496.2,2496.0,0.7864]
[1747772119320,3.5053281,2496.2,2496.0,0.7864]
[1747772119517,3.5053281,2496.2,2496.1,29.747]
[1747772120855,3.5053281,2496.2,2496.1,21.747]
[1747772121615,3.5053281,2496.2,2496.1,0.1]
[1747772121819,3.5053281,2496.2,2496.1,12.745]
[1747772122864,4.00434968,2497.3,2496.1,12.745]
[1747772123091,4.00608925,2496.2,2496.1,12.745]
[1747772123377,4.00541748,2496.7,2496.4,0.7579]
[1747772123539,4.00512656,2496.8,2496.5,17.286]
[1747772123741,4.00530832,2496.7,2496.6,12.647]
[1747772124322,4.00530832,2496.7,2496.6,21.65]
[1747772125581,4.00528697,2496.7,2496.6,25.55236288]
[1747772125728,4.00497431,2496.9,2496.7,0.793]
[1747772125927,4.00512656,2496.8,2496.7,0.793]
[1747772126330,4.00386175,2497.6,2496.7,0.793]
[1747772126525,4.00416433,2497.4,2496.7,2.30435832]
[1747772126822,4.00498981,2496.9,2496.7,2.30435832]
[1747772127260,0.19440105,2498.6,2496.7,2.30435832]
[1747772127465,4.67648207,2498.2,2497.0,0.7869]
[1747772127639,4.00455807,2497.2,2497.1,12.647]
[1747772127838,4.00455807,2497.2,2497.1,13.99039]
[1747772129285,4.00455807,2497.2,2497.1,12.647]
[1747772130963,4.00464538,2497.1,2497.0,0.7869]
[1747772131166,4.00464538,2497.1,2497.0,13.4339]
[1747772131365,4.00464538,2497.1,2497.0,12.647]
[1747772133559,4.00460373,2497.2,2497.0,12.647]
[1747772133758,0.6736,2497.9,2497.1,0.8095]
[1747772133967,4.00448502,2497.2,2497.1,0.8095]
[1747772134346,4.00464538,2497.1,2497.0,12.647]
[1747772135168,4.67711785,2497.9,2497.0,12.647]
[1747772135367,4.00464538,2497.1,2497.0,12.647]
[1747772135943,4.00464538,2497.1,2497.0,0.37537788]
[1747772136147,4.00464538,2497.1,2497.0,13.02237788]
[1747772137078,4.00464538,2497.1,2497.0,12.647]
[1747772138443,4.80556194,2497.1,2497.0,12.647]
[1747772138740,4.00528697,2496.7,2496.6,8.0]
[1747772138965,4.00528697,2496.7,2496.6,12.647]
[1747772139648,4.00528697,2496.7,2496.6,13.02398273]
[1747772142351,4.00528697,2496.7,2496.6,13.00598273]
[1747772142885,5.20682841,2496.7,2496.6,13.00598273]
[1747772143254,4.00528697,2496.7,2496.6,13.00598273]
[1747772148690,4.00592877,2496.3,2496.2,16.5860495]
[1747772148864,4.00592877,2496.3,2496.2,46.5050495]
[1747772149469,4.00592877,2496.3,2496.2,50.8515815]
[1747772149674,4.00568371,2496.5,2496.2,50.8515815]
[1747772149874,4.00448502,2497.2,2496.3,7.54249288]
[1747772150101,4.00565016,2496.5,2496.3,3.90236288]
[1747772150294,4.0055636,2496.6,2496.4,4.588]
[1747772150499,4.0055636,2496.6,2496.5,0.8181]
[1747772152706,6.603,2498.1,2496.5,0.85815338]
[1747772153005,4.00538644,2496.7,2496.5,2.32945832]
[1747772153207,4.0054474,2496.6,2496.5,0.8181]
[1747772153611,4.00525867,2496.8,2496.6,8.0]
[1747772153916,4.0054474,2496.6,2496.5,0.8181]
[1747772154107,4.0054474,2496.6,2496.5,21.4481]
[1747772155377,4.0054474,2496.6,2496.5,12.63]
[1747772155751,4.80652472,2496.6,2496.5,12.63]
[1747772156006,4.00560785,2496.5,2496.4,0.62689477]
[1747772156171,4.00560785,2496.5,2496.4,13.25689477]
[1747772157307,4.00560785,2496.5,2496.4,12.63]
[1747772157505,4.00560785,2496.5,2496.4,17.2459]
[1747772157684,4.00560785,2496.5,2496.4,13.454]
[1747772157885,4.00560785,2496.5,2496.4,12.63]
[1747772160071,4.00496051,2497.0,2496.4,12.63]
[1747772160408,4.00543338,2496.7,2496.6,0.824]
[1747772161419,4.00543338,2496.7,2496.6,9.829]
[1747772161817,4.00543338,2496.7,2496.6,10.20821744]
[1747772162130,4.00543338,2496.7,2496.6,14.20821744]
[1747772162322,4.00543338,2496.7,2496.6,10.20821744]
[1747772162523,4.00543338,2496.7,2496.6,22.20821744]
[1747772162749,4.00518753,2496.8,2496.6,17.29203918]
[1747772163035,4.00518753,2496.8,2496.7,8.37921744]
[1747772163207,4.00510946,2496.9,2496.7,8.37921744]
[1747772163410,4.00512656,2496.8,2496.7,8.37921744]
[1747772164939,4.00512656,2496.8,2496.7,9.38321744]
[1747772165141,4.80615016,2496.8,2496.7,13.00921744]
[1747772165830,5.47975016,2496.8,2496.7,0.37921744]
[1747772166403,5.47975016,2496.8,2496.6,12.63]
[1747772166404,4.00528697,2496.7,2496.6,12.63]
[1747772167943,4.00608925,2496.2,2496.1,0.1]
[1747772168141,5.27523158,2496.2,2496.1,0.1]
[1747772168572,13.94883158,2496.2,2496.1,0.1]
[1747772168928,14.49883158,2496.2,2496.1,0.1]
[1747772169269,21.10183158,2496.2,2496.1,0.1]
[1747772169562,4.00769477,2495.2,2495.1,0.1]
[1747772170669,4.0067313,2495.8,2495.1,0.1]
[1747772170899,4.00762265,2495.3,2495.2,29.902]
[1747772172611,4.00719706,2495.6,2495.2,29.902]
[1747772172887,4.00676216,2495.8,2495.4,0.806]
[1747772173045,4.0065304,2496.0,2495.6,1.356]
[1747772173250,4.0065304,2496.0,2495.7,21.616]
[1747772173484,4.00658847,2495.9,2495.7,21.616]
[1747772173787,4.00658847,2495.9,2495.7,24.03732702]
[1747772174285,4.00592877,2496.3,2495.7,24.03732702]
[1747772174595,4.00659364,2495.9,2495.7,24.03732702]
[1747772176318,4.00665802,2495.9,2495.7,24.03732702]
[1747772177313,4.00745371,2495.4,2495.2,17.293]
[1747772177611,4.00595561,2496.3,2495.5,8.0]
[1747772177612,4.00707234,2495.6,2495.5,8.0]
[1747772178413,4.00691305,2495.7,2495.3,13.4005]
[1747772178414,4.00737356,2495.4,2495.3,8.0]
[1747772178588,4.00753416,2495.3,2495.2,17.293]
[1747772178787,4.00753416,2495.3,2495.2,29.903]
[1747772178990,5.20974623,2495.3,2495.2,29.903]
[1747772180313,4.00753416,2495.3,2495.2,29.903]
[1747772180487,4.00742494,2495.4,2495.3,0.832]
[1747772180695,4.0072873,2495.5,2495.3,0.832]
[1747772181002,4.00753416,2495.3,2495.2,26.3]
[1747772181206,4.00753416,2495.3,2495.2,38.91]
[1747772181404,4.00753416,2495.3,2495.2,17.293]
[1747772181599,4.00753416,2495.3,2495.2,38.91]
[1747772181791,4.00753416,2495.3,2495.2,17.293]
[1747772182193,4.00753416,2495.3,2495.2,29.904]
[1747772182389,4.00753416,2495.3,2495.2,17.293]
[1747772182590,4.80903321,2495.3,2495.2,29.904]
[1747772183794,4.00769477,2495.2,2495.1,0.1]
[1747772185324,4.00769477,2495.2,2495.1,12.713]
[1747772187231,4.00769477,2495.2,2495.1,0.1]
[1747772189436,4.00769477,2495.2,2495.1,12.714]
[1747772189614,4.80921766,2495.2,2495.1,12.714]
[1747772189938,4.80921766,2495.2,2495.1,0.1]
[1747772190134,4.80921766,2495.2,2495.1,12.714]
[1747772190348,4.80921766,2495.2,2495.1,0.1]
[1747772190349,5.48281766,2495.2,2495.1,0.1]
[1747772190569,17.94616452,2495.2,2495.1,0.1]
[1747772190698,4.00930157,2494.2,2494.1,0.1]
[1747772191672,4.0107488,2493.3,2492.8,12.614]
[1747772191803,0.6736,2493.9,2493.1,0.8743]
[1747772192241,1.06452408,2493.9,2493.1,0.1]
[1747772192726,4.01039701,2493.6,2493.1,0.1]
[1747772192934,1.06452408,2493.9,2493.1,0.1]
[1747772193330,4.01066198,2493.4,2493.1,0.1]
[1747772193846,4.01086251,2493.3,2493.1,0.1]
[1747772195043,0.6736,2493.9,2493.1,0.1]
[1747772195345,0.6736,2494.5,2493.3,0.55]
[1747772195529,0.6736,2494.5,2493.6,0.7649]
[1747772195734,4.00910376,2494.4,2493.7,17.013]
[1747772195930,13.81641488,2495.2,2493.7,17.013]
[1747772195931,0.6736,2495.1,2493.7,17.013]
[1747772196132,4.00893986,2494.5,2493.9,8.0]
[1747772196335,4.00842775,2494.8,2494.1,8.7649]
[1747772196540,0.6736,2495.5,2494.2,0.04009082]
[1747772196720,1.08399632,2495.5,2494.3,12.617]
[1747772196921,1.08399632,2495.5,2493.8,17.304]
[1747772196922,4.42657435,2494.8,2493.8,17.304]
[1747772197145,4.42657435,2494.8,2494.0,12.617]
[1747772197646,4.00951816,2494.1,2494.0,12.617]
[1747772198883,4.00933988,2494.2,2494.0,12.617]
[1747772199084,4.00933988,2494.2,2493.8,17.304]
[1747772199085,4.00978387,2493.9,2493.8,17.304]
[1747772200081,9.07025367,2494.7,2493.8,17.304]
[1747772200249,1.07025367,2494.7,2493.8,17.304]
[1747772200448,4.00944951,2494.2,2493.8,17.304]
[1747772200787,4.00817668,2494.9,2494.0,8.8117]
[1747772200994,4.00854691,2494.7,2494.1,9.014]
[1747772201275,4.00836047,2494.8,2494.3,8.0]
[1747772201869,4.00749014,2495.4,2494.4,0.8117]
[1747772201870,0.6736,2495.4,2494.4,0.8117]
[1747772202383,4.00802998,2495.0,2494.4,0.8117]
[1747772202694,4.00804719,2495.0,2494.4,0.8117]
[1747772203538,4.00753416,2495.3,2494.5,12.6]
[1747772203739,4.00801603,2495.0,2494.6,0.8117]
[1747772203963,4.00772234,2495.2,2494.6,2.15287]
[1747772204142,4.00780714,2495.2,2494.6,2.15287]
[1747772204461,4.00801824,2495.0,2494.6,10.15287]